bitfinex/quotes_ETHUSD_20240824
["timestamp","ask_amount","ask_price","bid_price","bid_amount"]
[1724480142668,3.62375,2759.6,2759.1,1.34497559]
[1724480144481,3.62385,2759.5,2759.1,1.34497559]
[1724480144882,3.62407,2759.4,2759.1,0.07441182]
[1724480145186,7.24816,2759.4,2758.9,3.55686377]
[1724480145483,3.62411,2759.3,2759.2,0.07220142]
[1724480145683,3.62411,2759.3,2758.9,3.55686377]
[1724480145888,3.62411,2759.3,2759.2,0.07220142]
[1724480146072,3.62407,2759.4,2759.2,0.07220142]
[1724480146254,3.62407,2759.4,2759.3,0.07217732]
[1724480146460,3.62407,2759.4,2758.9,3.55686377]
[1724480146660,3.62407,2759.4,2759.0,0.07224963]
[1724480147087,3.62407,2759.4,2759.1,1.27056377]
[1724480147266,3.62365,2759.7,2759.3,1.27056377]
[1724480147482,7.24706,2759.8,2759.3,1.27056377]
[1724480147688,7.24706,2759.8,2759.4,0.07215322]
[1724480148680,3.62362,2759.7,2759.4,0.07215322]
[1724480148871,3.62373,2759.6,2759.4,0.07215322]
[1724480149273,3.62384,2759.5,2759.4,0.07215322]
[1724480149605,3.62403,2759.4,2759.0,3.66346377]
[1724480150012,3.62403,2759.4,2759.1,0.07243515]
[1724480150317,7.24777,2759.5,2759.1,0.07243515]
[1724480150466,3.62384,2759.5,2759.1,0.07243515]
[1724480156330,4.89479377,2759.2,2759.1,0.07243515]
[1724480156528,4.89479377,2759.2,2758.5,2.3929]
[1724480156529,3.62438,2759.1,2758.5,2.3929]
[1724480156699,11.07416,2759.3,2758.7,2.3929]
[1724480156915,7.45,2759.3,2759.0,3.62449]
[1724480157087,7.45,2759.3,2759.1,2.46307273]
[1724480157292,3.62384,2759.5,2759.1,2.46307273]
[1724480157990,3.62372,2759.6,2759.1,2.46307273]
[1724480158416,3.62372,2759.6,2759.1,2.3929]
[1724480158728,3.62372,2759.6,2759.2,0.07021153]
[1724480159788,7.24732,2759.7,2759.2,0.07021153]
[1724480160125,3.62365,2759.7,2759.2,0.07021153]
[1724480160485,3.62365,2759.7,2759.2,1.16845206]
[1724480160685,3.62365,2759.7,2759.3,2.2609]
[1724480160911,3.62365,2759.7,2759.4,0.07016333]
[1724480161386,12.21,2760.0,2759.4,0.07016333]
[1724480161593,3.62337,2759.9,2759.5,3.53146377]
[1724480161914,3.62337,2759.9,2759.6,0.07011513]
[1724480162222,3.62337,2759.9,2759.5,3.53146377]
[1724480162632,3.62337,2759.9,2759.6,0.07011513]
[1724480163263,3.6232,2760.0,2759.6,0.07011513]
[1724480164115,7.45,2760.1,2759.6,0.07011513]
[1724480164555,7.45,2760.1,2759.8,2.3993]
[1724480164852,14.93925994,2761.3,2760.3,2.3993]
[1724480165177,14.93925994,2761.3,2760.0,1.27056377]
[1724480165178,11.07152,2761.3,2760.8,1.27056377]
[1724480165309,7.45,2761.3,2760.8,7.29199377]
[1724480166138,7.45,2761.3,2760.8,3.66986377]
[1724480166314,2.3467,2761.2,2760.9,0.06951376]
[1724480166522,2.3467,2761.2,2760.5,2.3993]
[1724480166843,2.3467,2761.2,2760.6,0.06829198]
[1724480167208,2.3467,2761.2,2760.5,2.3993]
[1724480167412,3.62201,2760.9,2760.5,2.3993]
[1724480167623,3.62201,2760.9,2760.6,0.06829198]
[1724480167953,3.62175,2761.1,2760.6,0.06829198]
[1724480169416,3.62192,2761.0,2760.6,0.06829198]
[1724480169644,3.62192,2761.0,2760.3,6.02206]
[1724480169853,3.62192,2761.0,2760.7,0.0682679]
[1724480170177,3.62201,2760.9,2760.8,0.06824383]
[1724480170319,4.4422859,2760.9,2760.8,0.06824383]
[1724480170512,4.4422859,2760.9,2760.3,2.3993]
[1724480170739,3.62216,2760.8,2760.4,0.06776575]
[1724480170946,3.62216,2760.8,2760.2,3.0]
[1724480171141,3.62216,2760.8,2760.3,0.06778984]
[1724480173063,0.8202759,2760.9,2760.3,3.69057984]
[1724480174158,4.4423759,2760.9,2760.3,3.69057984]
[1724480174472,0.44423759,2760.8,2760.3,3.69057984]
[1724480175255,3.62241,2760.6,2760.3,0.06778984]
[1724480175620,3.62241,2760.6,2760.0,2.3993]
[1724480175843,3.62241,2760.6,2760.4,0.06776575]
[1724480176042,3.62241,2760.6,2760.0,5.3993]
[1724480176246,0.724468,2760.5,2760.0,5.3993]
[1724480176574,0.724468,2760.5,2759.7,3.62353]
[1724480176575,3.62287,2760.3,2759.7,2.3993]
[1724480176873,11.07257,2760.5,2759.8,3.62343]
[1724480177473,11.07257,2760.5,2759.9,0.06594597]
[1724480177772,11.07257,2760.5,2759.7,6.02287]
[1724480177773,3.62279,2760.4,2759.7,6.02287]
[1724480177985,3.6228,2760.3,2759.8,0.06597006]
[1724480178152,0.36228,2760.2,2759.7,6.02287]
[1724480178362,0.36228,2760.2,2759.8,0.06597006]
[1724480178568,0.36228,2760.2,2759.7,2.3993]
[1724480178569,3.98529,2760.2,2759.7,2.3993]
[1724480178764,3.62315,2760.1,2759.8,0.06597006]
[1724480178954,3.62315,2760.1,2759.5,5.9501]
[1724480179169,4.383973,2760.1,2759.6,0.06601825]
[1724480180682,4.383973,2760.1,2759.6,3.68970825]
[1724480182495,0.760823,2760.1,2759.6,3.68970825]
[1724480183052,0.760823,2760.1,2759.6,0.06601825]
[1724480183383,4.383893,2760.1,2759.6,0.06601825]
[1724480183546,0.7129873,2760.0,2759.6,3.68969825]
[1724480183748,4.383893,2760.1,2759.6,3.68969825]
[1724480184790,4.383893,2760.1,2759.6,0.06601825]
[1724480186090,3.6232,2760.0,2759.6,0.06601825]
[1724480186412,3.62326,2760.0,2759.6,0.06601825]
[1724480187009,3.62326,2760.0,2759.4,3.62394]
[1724480187208,0.8007153,2759.9,2759.7,0.06620372]
[1724480187415,0.8007153,2759.9,2759.4,3.62394]
[1724480187716,0.8007153,2759.9,2759.8,0.06617962]
[1724480188314,0.8007153,2759.9,2759.5,3.62383]
[1724480188615,6.00667,2760.2,2759.5,3.62381]
[1724480188819,6.00667,2760.2,2759.6,0.06622781]
[1724480189015,9.6297,2760.2,2759.6,0.06622781]
[1724480189786,3.6232,2760.0,2759.6,0.06622781]
[1724480191224,3.6232,2760.0,2759.7,0.06620372]
[1724480191405,0.36232,2759.9,2759.7,0.06620372]
[1724480191591,0.36232,2759.9,2759.4,3.62392]
[1724480191792,0.36232,2759.9,2759.5,0.06625191]
[1724480192323,0.36232,2759.9,2759.5,3.69007191]
[1724480192622,3.6232,2760.0,2759.5,3.69007191]
[1724480195222,3.6232,2760.0,2759.5,0.06625191]
[1724480196233,7.24647,2760.0,2759.5,0.06625191]
[1724480196529,3.6232,2760.0,2759.5,0.06625191]
[1724480197231,7.24647,2760.0,2759.5,0.06625191]
[1724480197441,8.33668519,2760.0,2759.5,0.06625191]
[1724480197637,3.62349,2759.8,2759.5,0.06625191]
[1724480197811,3.62358,2759.7,2759.5,0.06625191]
[1724480198137,3.62373,2759.6,2759.0,4.89644193]
[1724480198450,7.24754,2759.6,2759.0,4.89644193]
[1724480198617,8.199514,2759.6,2759.0,4.89644193]
[1724480198799,3.62387,2759.5,2759.0,4.89644193]
[1724480199447,3.62387,2759.5,2759.0,3.62446]
[1724480199628,4.575704,2759.6,2759.0,3.62446]
[1724480199629,8.199534,2759.6,2759.0,3.62446]
[1724480201051,8.199504,2759.6,2759.0,3.62446]
[1724480201257,0.94714859,2759.5,2759.0,3.62446]
[1724480201662,0.94714859,2759.5,2758.9,2.3338]
[1724480202472,3.62398,2759.4,2758.9,5.95841]
[1724480203242,7.24804,2759.4,2758.9,2.3338]
[1724480203448,3.62425,2759.2,2758.7,2.4782]
[1724480203675,3.62425,2759.2,2758.7,6.10309]
[1724480204946,0.81951886,2759.3,2758.7,6.10309]
[1724480204947,4.44362886,2759.3,2758.7,6.10309]
[1724480207579,3.62424,2759.2,2758.8,0.06643634]
[1724480207944,3.62424,2759.2,2758.9,0.06641223]
[1724480208145,4.67063389,2759.2,2758.9,0.06641223]
[1724480208359,4.67063389,2759.2,2758.7,6.10309]
[1724480208701,4.67063389,2759.2,2758.8,0.06643634]
[1724480208903,1.04639389,2759.2,2758.8,0.06643634]
[1724480209101,1.04639389,2759.2,2758.7,6.10301]
[1724480209297,1.04639389,2759.2,2758.9,0.06641223]
[1724480209495,1.04639389,2759.2,2758.8,0.06643634]
[1724480209496,4.67066389,2759.2,2758.8,0.06643634]
[1724480209701,4.67066389,2759.2,2759.0,0.06638812]
[1724480210002,0.46706639,2759.1,2758.7,6.10301]
[1724480210201,3.62427,2759.2,2758.7,6.10301]
[1724480212580,6.02018,2759.4,2758.8,3.62476]
[1724480212801,3.6241,2759.3,2758.8,3.62476]
[1724480213266,3.6241,2759.3,2758.7,2.4782]
[1724480213481,3.62424,2759.2,2758.7,2.4782]
[1724480215434,8.213002,2759.2,2758.7,2.4782]
[1724480215589,4.588682,2759.2,2758.6,4.89688193]
[1724480216733,0.964442,2759.2,2758.7,6.10307]
[1724480216943,6.02024,2759.4,2758.7,6.10307]
[1724480216944,3.62412,2759.3,2758.7,9.72789]
[1724480217130,3.62412,2759.3,2758.7,6.10302]
[1724480217464,6.02024,2759.4,2758.8,3.62475]
[1724480217465,9.64431,2759.4,2758.8,3.62475]
[1724480217744,3.6241,2759.3,2758.8,3.62475]
[1724480218604,3.6241,2759.3,2758.7,6.10302]
[1724480220813,3.6241,2759.3,2758.7,9.72784]
[1724480221144,3.62423,2759.2,2758.7,7.37500193]
[1724480222338,3.62423,2759.2,2758.8,0.06787751]
[1724480222544,3.62423,2759.2,2758.8,0.05287751]
[1724480222702,3.62423,2759.2,2758.8,0.0673534]
[1724480222907,3.62423,2759.2,2758.7,7.37500193]
[1724480223110,3.62423,2759.2,2758.9,0.0673534]
[1724480223433,0.44437589,2759.1,2759.0,0.06732929]
[1724480223638,0.44437589,2759.1,2758.7,7.37500193]
[1724480223846,3.62423,2759.2,2758.8,0.06737751]
[1724480224047,3.62423,2759.2,2758.7,7.37500193]
[1724480224231,3.62423,2759.2,2758.8,0.06737751]
[1724480224413,3.62423,2759.2,2758.7,7.37500193]
[1724480224615,3.62423,2759.2,2758.8,0.06737751]
[1724480224827,0.44437589,2759.1,2758.7,3.62482]
[1724480225046,0.44437589,2759.1,2758.8,0.06737751]
[1724480225523,0.44437589,2759.1,2758.7,3.62489]
[1724480225860,3.62423,2759.2,2758.8,0.06760297]
[1724480226208,3.62423,2759.2,2758.7,3.62489]
[1724480226440,3.62423,2759.2,2758.8,0.06760297]
[1724480226648,0.94714859,2759.5,2758.9,3.57648193]
[1724480226823,3.62373,2759.6,2759.1,1.27198193]
[1724480227020,3.62387,2759.5,2759.2,0.06750655]
[1724480227314,3.62373,2759.6,2759.2,0.06750655]
[1724480227647,7.45,2759.7,2759.2,5.99622655]
[1724480228217,7.45,2759.7,2759.3,3.62408]
[1724480228462,7.45,2760.0,2759.5,4.89577193]
[1724480228756,5.52014578,2760.2,2759.7,3.62357]
[1724480228757,3.62299,2760.2,2759.7,3.62357]
[1724480229047,7.24602,2760.2,2759.8,0.06723611]
[1724480229252,1.712952,2760.1,2759.8,0.06723611]
[1724480229413,1.712952,2760.1,2759.6,2.3045]
[1724480229746,1.712952,2760.1,2759.7,0.0672602]
[1724480230354,5.336042,2760.1,2759.7,0.0672602]
[1724480231051,5.336042,2760.1,2759.5,4.89577193]
[1724480231244,5.336042,2760.1,2759.5,3.62379]
[1724480231564,5.336042,2760.1,2759.6,0.0672843]
[1724480234261,4.64630139,2760.0,2759.6,0.0672843]
[1724480234566,2.4335,2759.9,2759.5,3.62379]
[1724480234925,2.4335,2759.9,2759.6,0.06702217]
[1724480236147,3.62359,2759.7,2759.1,3.6243]
[1724480236427,3.62355,2759.8,2759.2,3.62423]
[1724480236622,3.62355,2759.8,2759.3,0.0667327]
[1724480236863,4.82108733,2759.8,2759.2,3.62423]
[1724480237026,8.44465733,2759.8,2759.3,0.0667327]
[1724480237227,8.44465733,2759.8,2759.2,3.62423]
[1724480237228,8.44462733,2759.8,2759.2,3.62423]
[1724480237441,3.62362,2759.7,2759.3,0.06453827]
[1724480237649,3.62362,2759.7,2759.2,3.62423]
[1724480237850,4.82107733,2759.8,2759.4,0.06451417]
[1724480238130,4.82107733,2759.8,2759.3,2.3045]
[1724480238339,4.82107733,2759.8,2759.5,0.06449007]
[1724480238570,4.82107733,2759.8,2759.6,0.06446597]
[1724480238571,0.72545773,2759.7,2759.6,0.06446597]
[1724480238772,0.72545773,2759.7,2759.2,3.62416]
[1724480238994,4.82107733,2759.8,2759.3,0.06453827]
[1724480239169,4.82107733,2759.8,2759.2,7.24831]
[1724480239362,4.82107733,2759.8,2759.3,3.68862827]
[1724480239780,4.82107733,2759.8,2759.3,0.06453827]
[1724480239984,4.82107733,2759.8,2759.2,3.62415]
[1724480240256,4.82107733,2759.8,2759.3,0.06453827]
[1724480240494,0.72545773,2759.7,2759.2,3.62415]
[1724480240693,0.72545773,2759.7,2759.4,0.06451417]
[1724480240897,0.72545773,2759.7,2759.3,0.06453827]
[1724480241098,0.72545773,2759.7,2759.5,0.06449007]
[1724480241299,0.72545773,2759.7,2759.4,0.06451417]
[1724480241606,0.72545773,2759.7,2759.6,0.06446597]
[1724480241788,0.72545773,2759.7,2759.5,0.06449007]
[1724480241789,2.2954,2759.6,2759.5,0.06449007]
[1724480241988,3.62392,2759.5,2758.9,3.62452]
[1724480242589,3.62392,2759.5,2758.9,4.89650193]
[1724480242974,3.62392,2759.5,2759.0,3.6245]
[1724480243378,2.85005351,2759.6,2759.1,3.62228193]
[1724480243379,2.2954,2759.6,2759.1,3.62228193]
[1724480243578,2.2954,2759.6,2759.2,3.62423]
[1724480247283,2.2954,2759.6,2759.1,3.62228193]
[1724480248317,2.2954,2759.6,2759.1,7.24661193]
[1724480249016,11.79903773,2759.7,2759.2,3.62418]
[1724480249017,7.45,2759.7,2759.2,3.62418]
[1724480249220,7.45,2759.7,2759.3,4.89600193]
[1724480249393,7.45,2759.7,2759.5,7.24612193]
[1724480249599,7.45,2760.1,2759.6,3.6237]
[1724480249904,7.45,2760.1,2759.7,1.27198193]
[1724480250106,7.45,2760.1,2759.9,4.89529193]
[1724480250420,7.45,2760.1,2759.9,3.62228193]
[1724480250584,7.45,2760.1,2759.9,2.3503]
[1724480252525,7.45,2760.1,2760.0,0.06426481]
[1724480253123,3.62253,2760.5,2760.0,3.68744481]
[1724480258707,3.62253,2760.5,2760.0,0.06426481]
[1724480259247,7.24516,2760.5,2760.0,0.06426481]
[1724480259463,3.62253,2760.5,2760.0,0.06426481]
[1724480260106,7.24516,2760.5,2760.0,0.06426481]
[1724480260456,8.42974991,2760.5,2760.0,0.06426481]
[1724480261756,3.62266,2760.4,2760.0,0.06426481]
[1724480266817,4.80711991,2760.5,2760.0,0.06426481]
[1724480267021,3.62267,2760.4,2760.0,0.06426481]
[1724480267708,8.42974991,2760.5,2760.0,0.06426481]
[1724480267907,1.07001499,2760.4,2760.0,0.06426481]
[1724480268660,3.62253,2760.5,2760.0,0.06426481]
[1724480269004,7.24515,2760.5,2760.0,0.06426481]
[1724480270946,4.89462193,2760.5,2760.0,0.06426481]
[1724480271123,3.62294,2760.2,2760.0,0.06426481]
[1724480271328,5.95211,2760.3,2759.7,3.62357]
[1724480271507,3.62293,2760.2,2760.1,0.06372716]
[1724480271856,4.580434,2760.2,2760.1,0.06372716]
[1724480272023,3.62306,2760.1,2759.6,2.4285]
[1724480272220,7.2462,2760.1,2759.7,0.06382353]
[1724480272421,7.2462,2760.1,2759.5,3.62372]
[1724480272624,7.2462,2760.1,2759.6,0.06384762]
[1724480272823,4.80354859,2760.1,2759.6,0.06384762]
[1724480273961,4.80354859,2760.1,2759.6,3.68754762]
[1724480274515,1.18048859,2760.1,2759.6,3.68747762]
[1724480274716,4.580494,2760.2,2759.6,3.68747762]
[1724480275342,4.580494,2760.2,2759.6,7.31110762]
[1724480276573,4.580494,2760.2,2759.7,3.62356]
[1724480276918,4.580494,2760.2,2759.8,0.06379943]
[1724480277122,1.52103994,2760.4,2759.9,2.4285]
[1724480277373,3.62261,2760.5,2759.9,2.4285]
[1724480277528,3.62261,2760.5,2760.0,3.68693125]
[1724480282072,3.62273,2760.4,2760.0,0.06375125]
[1724480282755,3.62273,2760.4,2759.8,3.6234]
[1724480282947,5.04929328,2760.4,2759.8,3.6234]
[1724480283144,1.27198193,2760.0,2759.9,0.06371248]
[1724480283347,10.03938187,2760.0,2759.9,0.06371248]
[1724480283662,3.62335,2759.9,2759.3,3.6241]
[1724480283860,14.95669994,2760.1,2759.4,3.68139629]
[1724480284169,14.95669994,2760.1,2759.5,5.99702]
[1724480284170,8.70678536,2760.1,2759.5,5.99702]
[1724480284371,12.32986536,2760.1,2759.5,5.99702]
[1724480284678,12.32986536,2760.1,2759.6,0.05741809]
[1724480287500,1.25678536,2760.1,2759.6,0.05741809]
[1724480287643,3.62296,2760.2,2759.6,0.05741809]
[1724480288470,5.14399994,2760.2,2759.6,0.05741809]
[1724480288871,3.62296,2760.2,2759.6,0.05741809]
[1724480289388,5.14399994,2760.2,2759.6,0.05741809]
[1724480289976,8.76703994,2760.2,2759.6,0.05741809]
[1724480290891,3.62307,2760.1,2759.6,0.05741809]
[1724480293238,5.14410994,2760.1,2759.6,0.05741809]
[1724480294319,3.6232,2760.0,2759.6,0.05741809]
[1724480295073,3.62332,2759.9,2759.6,0.05741809]
[1724480295911,2.07321989,2760.0,2759.6,0.05741809]
[1724480296085,3.6232,2760.0,2759.6,0.05741809]
[1724480296472,5.14423994,2760.0,2759.6,0.05741809]
[1724480297109,8.76752994,2760.0,2759.6,0.05741809]
[1724480297606,5.14458994,2759.8,2759.6,0.05741809]
[1724480297806,3.62355,2759.8,2759.6,0.05741809]
[1724480298008,3.62355,2759.8,2759.3,2.3732]
[1724480298211,3.62355,2759.8,2759.7,0.05757213]
[1724480298396,3.62355,2759.8,2759.3,2.3732]
[1724480298898,7.24673,2759.9,2759.4,0.05764442]
[1724480299712,3.62359,2759.7,2759.4,0.05764442]
[1724480302108,10.20026809,2759.9,2759.4,0.05764442]
[1724480302317,3.62332,2759.9,2759.4,0.05764442]
[1724480305913,7.24672,2759.9,2759.4,0.05764442]
[1724480306103,5.14435994,2759.9,2759.4,0.05764442]
[1724480306305,3.62346,2759.8,2759.4,0.05764442]
[1724480306721,3.62363,2759.7,2759.4,0.05764442]
[1724480306895,3.62384,2759.5,2758.9,2.3674]
[1724480307093,3.62384,2759.5,2759.0,0.05398626]
[1724480307617,3.62384,2759.5,2759.0,3.67845626]
[1724480307819,3.62384,2759.5,2759.1,3.63938193]
[1724480308334,3.62384,2759.5,2759.2,0.05205185]
[1724480308620,0.362384,2759.4,2759.2,0.05205185]
[1724480309119,3.62384,2759.5,2759.2,0.05205185]
[1724480317958,3.62384,2759.5,2759.0,3.62447]
[1724480318156,3.62384,2759.5,2759.3,0.05251513]
[1724480318360,3.62384,2759.5,2759.0,3.62447]
[1724480318535,3.62384,2759.5,2759.4,0.05249103]
[1724480318826,4.579004,2759.5,2759.0,3.62447]
[1724480319029,3.62384,2759.5,2759.4,0.05249103]
[1724480319422,3.62384,2759.5,2759.0,3.62447]
[1724480319722,3.62384,2759.5,2759.1,0.05256334]
[1724480320143,7.24779,2759.5,2759.1,0.05256334]
[1724480320336,3.62384,2759.5,2759.1,0.05256334]
[1724480320653,4.216774,2759.4,2758.9,3.62461]
[1724480320816,2.3342,2759.3,2758.9,3.62461]
[1724480321222,2.3342,2759.3,2759.0,0.05258744]
[1724480322381,3.62384,2759.5,2759.0,0.05258744]
[1724480322581,5.95804,2759.5,2759.0,0.05258744]
[1724480324093,3.62398,2759.4,2759.0,0.05258744]
[1724480325291,9.58283,2759.2,2759.0,0.05258744]
[1724480325492,5.95847,2759.2,2758.6,7.89699193]
[1724480325666,3.62437,2759.1,2758.7,0.05285898]
[1724480327314,2.3342,2759.2,2758.7,3.67772898]
[1724480328402,3.62413,2759.3,2758.7,3.67772898]
[1724480328601,3.62413,2759.3,2758.7,7.30253898]
[1724480328918,3.62413,2759.3,2758.7,3.67766898]
[1724480329792,3.62413,2759.3,2758.8,1.27198193]
[1724480330198,3.62413,2759.3,2758.9,0.05281076]
[1724480334717,3.62391,2759.5,2758.9,3.67737076]
[1724480335386,7.24784,2759.5,2758.9,3.67737076]
[1724480335726,3.62391,2759.5,2758.9,3.67737076]
[1724480336133,7.24785,2759.5,2758.9,3.67737076]
[1724480337437,3.62391,2759.5,2758.9,3.67737076]
[1724480338342,3.62397,2759.4,2758.9,3.67737076]
[1724480339047,3.62397,2759.4,2758.9,0.05281076]
[1724480342819,6.06547,2759.3,2758.9,0.05281076]
[1724480343340,6.06547,2759.3,2758.7,3.62489]
[1724480343657,6.06547,2759.3,2758.8,0.05293449]
[1724480344058,6.06547,2759.3,2758.7,3.62489]
[1724480344360,6.06547,2759.3,2758.8,0.05293449]
[1724480344717,6.06547,2759.3,2758.7,3.62489]
[1724480344924,6.06547,2759.3,2758.8,0.05293449]
[1724480345125,6.06547,2759.3,2758.7,3.62489]
[1724480345321,6.06547,2759.3,2758.8,0.05293449]
[1724480345624,6.06547,2759.3,2758.7,3.62489]
[1724480345939,6.06547,2759.3,2758.8,0.05293449]
[1724480346140,6.06547,2759.3,2758.7,3.62489]
[1724480346347,6.06547,2759.3,2758.8,0.05293449]
[1724480346549,6.06547,2759.3,2758.7,3.62489]
[1724480346753,6.06547,2759.3,2758.8,0.05293449]
[1724480346954,6.06547,2759.3,2758.7,3.62489]
[1724480347261,6.06547,2759.3,2758.8,0.05293449]
[1724480347624,6.06547,2759.3,2758.7,3.62489]
[1724480347826,6.06547,2759.3,2758.9,0.05291038]
[1724480348021,6.06547,2759.3,2758.8,0.05293449]
[1724480348235,6.06547,2759.3,2759.0,0.05288627]
[1724480348461,7.6337416,2759.3,2758.9,0.05291038]
[1724480348633,7.6337416,2759.3,2759.1,0.05286216]
[1724480348838,7.6337416,2759.3,2758.7,3.62489]
[1724480349053,6.06547,2759.3,2758.7,3.62489]
[1724480349247,6.06547,2759.3,2758.8,0.05293449]
[1724480349561,6.06547,2759.3,2758.7,3.62489]
[1724480349925,6.06547,2759.3,2758.8,0.05293449]
[1724480350132,7.58537116,2759.3,2758.7,3.62489]
[1724480350334,7.58537116,2759.3,2758.8,0.05293449]
[1724480350530,7.58537116,2759.3,2758.7,3.62489]
[1724480350762,7.58537116,2759.3,2758.8,0.05293449]
[1724480351142,7.58537116,2759.3,2758.7,3.62489]
[1724480351344,3.62435,2759.2,2758.8,0.05293449]
[1724480351741,3.62435,2759.2,2758.6,10.25029193]
[1724480351941,3.62435,2759.2,2758.7,0.0529586]
[1724480353377,5.14425116,2759.2,2758.7,0.0529586]
[1724480353781,3.62437,2759.1,2758.7,0.0529586]
[1724480354985,1.51990116,2759.2,2758.7,0.0529586]
[1724480355196,5.14414116,2759.2,2758.7,3.6778386]
[1724480355705,5.14414116,2759.2,2758.7,0.0529586]
[1724480355911,3.62424,2759.2,2758.7,0.0529586]
[1724480356212,3.62424,2759.2,2758.7,3.6778286]
[1724480356361,3.62412,2759.3,2758.8,4.89674193]
[1724480356559,3.62412,2759.3,2758.9,2.42433658]
[1724480358182,5.14402116,2759.3,2758.9,2.42433658]
[1724480360079,5.14382116,2759.5,2759.0,3.62447]
[1724480360281,1.51990116,2759.4,2759.0,3.62447]
[1724480360498,1.51990116,2759.4,2759.1,0.05288836]
[1724480360994,1.51990116,2759.4,2758.9,2.3714]
[1724480361197,1.51990116,2759.4,2759.2,0.05283229]
[1724480361405,2.58699477,2759.4,2758.9,2.3714]
[1724480361595,5.14387116,2759.4,2759.3,0.05280818]
[1724480361802,5.14387116,2759.4,2758.9,2.3714]
[1724480362159,1.51990116,2759.4,2759.0,0.0528805]
[1724480363076,5.14388116,2759.4,2759.0,0.0528805]
[1724480364409,1.51990116,2759.5,2759.0,3.6773505]
[1724480365489,5.14378116,2759.5,2759.0,3.6773505]
[1724480368309,8.76772116,2759.5,2759.0,0.0528805]
[1724480369302,5.14378116,2759.5,2759.0,0.0528805]
[1724480371350,3.62388,2759.5,2759.0,3.6773705]
[1724480371512,3.62388,2759.5,2759.1,2.4666]
[1724480371710,3.62388,2759.5,2759.2,0.05282179]
[1724480378554,1.51990116,2759.6,2759.2,0.05282179]
[1724480378710,1.51990116,2759.7,2759.3,2.4671]
[1724480378909,7.45,2759.8,2759.5,2.4671]
[1724480379160,3.42251044,2759.9,2759.5,6.09092]
[1724480379323,8.76616116,2760.1,2759.6,0.05272539]
[1724480379509,5.14309116,2760.0,2759.6,0.05272539]
[1724480379930,3.62335,2759.9,2759.6,0.05272539]
[1724480380131,6.3373454,2759.9,2759.6,0.05272539]
[1724480380342,4.81744424,2759.9,2759.3,6.0911]
[1724480380720,8.44083424,2759.9,2759.4,0.05266875]
[1724480380944,4.81744424,2759.9,2759.4,0.05266875]
[1724480381849,3.62367,2759.7,2759.4,0.05266875]
[1724480382047,3.62366,2759.7,2759.4,0.05266875]
[1724480388146,9.58784,2759.7,2759.1,6.09145]
[1724480388318,9.58782,2759.7,2759.1,6.09145]
[1724480388517,5.96416,2759.7,2759.2,0.05271695]
[1724480390326,5.96416,2759.7,2759.2,3.67693695]
[1724480390652,3.62366,2759.7,2759.2,3.67693695]
[1724480391351,3.62366,2759.7,2759.2,4.78096784]
[1724480393451,3.62366,2759.7,2759.2,0.05271695]
[1724480393660,7.24778,2759.5,2759.2,0.05271695]
[1724480394031,3.62385,2759.5,2759.0,3.0]
[1724480394264,3.62385,2759.5,2759.3,0.05269808]
[1724480394483,3.62385,2759.5,2759.0,3.0]
[1724480394651,3.62385,2759.5,2759.4,0.05267398]
[1724480394837,4.70984819,2759.5,2759.0,3.0]
[1724480395036,3.62385,2759.5,2759.4,0.05267398]
[1724480395261,3.62385,2759.5,2759.0,6.62444]
[1724480395436,3.62385,2759.5,2759.4,0.05267398]
[1724480395638,3.62385,2759.5,2759.0,6.62444]
[1724480395827,3.62385,2759.5,2759.4,0.05267398]
[1724480396037,4.70984819,2759.5,2759.0,6.62444]
[1724480396341,3.62385,2759.5,2759.4,0.05267398]
[1724480396554,2.3405,2759.6,2759.0,6.62444]
[1724480396756,2.3405,2759.6,2759.4,0.05267398]
[1724480396757,5.96424,2759.6,2759.4,0.05267398]
[1724480396995,5.96424,2759.6,2759.0,6.62444]
[1724480397502,5.96424,2759.6,2759.1,3.67709629]
[1724480398277,2.3405,2759.6,2759.1,3.67709629]
[1724480399772,2.3405,2759.6,2759.1,7.30138629]
[1724480399973,4.89563193,2759.7,2759.1,7.30138629]
[1724480400187,4.89563193,2759.7,2759.2,6.10613]
[1724480400393,3.62365,2759.7,2759.3,0.05269808]
[1724480400744,3.62365,2759.7,2759.4,0.05267398]
[1724480400975,4.77414677,2759.7,2759.2,6.10613]
[1724480401281,3.62365,2759.7,2759.3,0.05269808]
[1724480401586,3.62365,2759.7,2759.2,6.10613]
[1724480401880,3.62365,2759.7,2759.3,0.05269808]
[1724480402283,3.62365,2759.7,2759.2,6.10613]
[1724480402485,3.62365,2759.7,2759.4,0.05267398]
[1724480402649,5.05475479,2759.7,2759.3,0.05269808]
[1724480402846,5.05475479,2759.7,2759.5,0.05264989]
[1724480403085,5.05475479,2759.7,2759.4,0.05267398]
[1724480403290,3.89070116,2759.8,2759.3,3.6241]
[1724480403491,3.89070116,2759.8,2759.5,0.05264989]
[1724480403785,3.89070116,2759.8,2759.4,0.05267398]
[1724480403949,7.51417116,2759.8,2759.5,0.05264989]
[1724480404163,7.51417116,2759.8,2759.3,3.6241]
[1724480404361,7.51417116,2759.8,2759.4,0.05267398]
[1724480404705,8.94530362,2759.8,2759.3,3.6241]
[1724480404879,1.51990116,2759.7,2759.3,3.6241]
[1724480405085,1.51990116,2759.7,2759.2,2.4819]
[1724480405086,1.51990116,2759.7,2759.4,0.05267398]
[1724480405467,1.51990116,2759.7,2759.2,6.1061]
[1724480405690,2.79188309,2759.7,2759.5,0.05269709]
[1724480405968,2.79188309,2759.7,2759.2,3.6242]
[1724480405969,1.21190971,2759.6,2759.2,3.6242]
[1724480406177,6.41546309,2759.7,2759.2,3.6242]
[1724480406376,1.51990116,2759.6,2759.3,0.05274528]
[1724480406781,3.62385,2759.5,2759.4,0.05272118]
[1724480406977,3.62385,2759.5,2759.0,6.10639]
[1724480407177,5.14375116,2759.5,2759.0,6.10639]
[1724480407382,5.14375116,2759.5,2759.1,0.05279349]
[1724480407669,3.62423,2759.2,2759.1,0.05279349]
[1724480408091,3.62423,2759.2,2758.6,9.10685]
[1724480408305,3.62423,2759.2,2759.1,0.05277776]
[1724480408505,3.62423,2759.2,2758.6,9.10685]
[1724480408710,3.62423,2759.2,2759.1,0.05277776]
[1724480408875,4.69315412,2759.2,2758.7,3.62481]